bitfinex/quotes_ETHUSD_20260312
["timestamp","ask_amount","ask_price","bid_price","bid_amount"]
[1773351933391,0.45015616,2061.0,2060.8,1.21504073]
[1773351936814,0.45015616,2061.0,2060.8,1.21394073]
[1773351938315,0.45015616,2061.0,2060.8,0.0011]
[1773351939010,1.21292629,2061.2,2060.8,0.50109796]
[1773351939011,1.854,2061.2,2060.8,0.50109796]
[1773351939188,1.854,2061.2,2060.9,1.26378253]
[1773351939919,1.66298873,2061.3,2061.0,0.0011]
[1773351940121,3.51698873,2061.3,2061.0,0.76378457]
[1773351941205,1.66298873,2061.3,2061.1,0.76378457]
[1773351941415,1.21283257,2061.3,2061.1,0.76378457]
[1773351941794,1.66298873,2061.3,2061.1,0.76378457]
[1773351948223,1.21283257,2061.3,2061.1,0.76378457]
[1773351948412,0.46531845,2061.2,2061.1,0.76378457]
[1773351948926,1.21283257,2061.3,2061.1,0.76378457]
[1773351949102,1.67815102,2061.3,2061.1,0.76378457]
[1773351949299,0.46531845,2061.2,2061.1,0.76378457]
[1773351949711,0.46531845,2061.2,2061.1,0.0011]
[1773351951330,0.46531845,2061.2,2061.1,0.76268457]
[1773351952934,1.21288666,2061.2,2060.8,0.0011]
[1773351953138,0.47576004,2061.1,2060.8,0.0011]
[1773351953930,0.47576004,2061.1,2061.0,0.0011]
[1773351958031,0.47576004,2061.1,2061.0,0.76378457]
[1773351964644,1.21288706,2061.2,2061.0,0.76378457]
[1773351964814,0.47576004,2061.2,2061.1,0.76268457]
[1773351968427,0.47576004,2061.2,2061.0,0.0011]
[1773351968629,0.47576004,2061.2,2061.1,0.76268457]
[1773351969942,1.0600409,2061.5,2061.2,0.47075652]
[1773351969943,0.01313005,2061.5,2061.2,0.47075652]
[1773351970121,1.67,2061.3,2061.2,1.23344109]
[1773351970322,0.01313005,2061.5,2061.4,0.47075652]
[1773351970543,1.21335725,2062.1,2061.6,0.47075652]
[1773351970747,1.87425707,2062.0,2061.6,0.47075652]
[1773351971123,0.001,2062.1,2061.8,0.47075652]
[1773351976330,0.001,2062.1,2061.9,1.23244109]
[1773351976532,0.001,2062.1,2061.9,0.47075652]
[1773351981448,0.001,2062.1,2062.0,0.76168457]
[1773351986402,0.01413005,2062.1,2062.0,0.76168457]
[1773351986995,0.47405368,2062.1,2062.0,0.76168457]
[1773351987201,0.47405368,2062.1,2061.6,0.47678264]
[1773351987202,0.45992363,2062.0,2061.6,0.47678264]
[1773351987499,0.47305368,2062.0,2061.6,0.47678264]
[1773351988272,0.47305368,2061.9,2061.5,0.01212702]
[1773351988477,0.45992363,2061.9,2061.5,0.48890966]
[1773351989876,0.46092363,2061.9,2061.5,0.48890966]
[1773351990272,0.46092363,2061.9,2061.6,0.0011]
[1773351991186,1.67339894,2061.9,2061.6,0.0011]
[1773351991796,0.45992363,2061.8,2061.6,0.0011]
[1773351995302,0.47405368,2061.9,2061.6,0.47788264]
[1773351995480,0.47405368,2061.9,2061.6,0.0011]
[1773351995481,0.47305368,2061.8,2061.6,0.0011]
[1773351997007,0.45992363,2061.8,2061.6,0.0011]
[1773351999108,0.45992363,2061.7,2061.5,0.01212702]
[1773352000613,0.01313005,2061.8,2061.5,0.48890966]
[1773352000911,0.01313005,2061.7,2061.5,0.48890966]
[1773352001106,0.47305368,2061.7,2061.5,0.01212702]
[1773352002097,0.01313005,2061.7,2061.5,0.48890966]
[1773352002504,0.01313005,2061.7,2061.5,0.49000966]
[1773352009501,0.001,2061.8,2061.5,0.49000966]
[1773352009502,0.001,2061.9,2061.6,0.47819997]
[1773352013129,0.001,2061.9,2061.7,1.21259155]
[1773352013300,0.001,2061.9,2061.8,0.49634026]
[1773352017240,0.001,2062.1,2061.9,0.49634026]
[1773352017460,0.001,2062.1,2061.9,1.70880054]
[1773352017737,0.001,2062.1,2061.9,0.49634026]
[1773352018720,0.001,2062.1,2061.8,0.49634026]
[1773352020725,0.48959652,2062.1,2061.8,0.49634026]
[1773352024764,0.48959652,2062.1,2061.8,0.53578106]
[1773352025975,0.001,2061.9,2061.8,0.53578106]
[1773352029172,0.001,2061.9,2061.7,0.0011]
[1773352029359,0.001,2061.9,2061.7,0.49744026]
[1773352031385,0.001,2061.9,2061.7,1.71001678]
[1773352034885,0.001,2061.9,2061.7,1.21367652]
[1773352035086,0.48959652,2061.9,2061.7,0.0011]
[1773352044126,0.48959652,2061.9,2061.6,0.0011]
[1773352050513,0.48959652,2061.9,2061.8,0.0011]
[1773352061446,0.48959652,2061.9,2061.5,0.01322702]
[1773352062421,0.48959652,2061.9,2061.7,0.0011]
[1773352063115,0.49759529,2061.8,2061.7,0.0011]
[1773352068346,0.49759529,2061.7,2061.5,0.01322702]
[1773352069144,2.34659529,2061.6,2061.5,0.01322702]
[1773352072140,0.45815067,2061.5,2061.2,0.40678711]
[1773352072446,2.30715067,2061.6,2061.2,0.40678711]
[1773352072654,1.849,2061.6,2061.3,0.47491573]
[1773352072953,1.21351912,2061.9,2061.3,0.47491573]
[1773352072954,0.001,2061.9,2061.3,0.47491573]
[1773352074236,0.001,2061.9,2061.5,0.47491573]
[1773352074955,0.001,2061.9,2061.5,0.47601573]
[1773352076328,0.001,2061.9,2061.7,0.47491573]
[1773352083935,0.001,2061.9,2061.6,1.21264185]
[1773352084135,0.001,2061.9,2061.6,0.47491573]
[1773352085362,0.001,2061.9,2061.6,1.68755743]
[1773352086365,0.001,2061.9,2061.6,0.47491573]
[1773352087146,0.001,2061.7,2061.6,0.47491573]
[1773352087864,0.001,2061.7,2061.6,1.68756609]
[1773352088060,0.001,2061.7,2061.6,0.47491573]
[1773352088371,0.001,2061.7,2061.6,1.68756609]
[1773352089065,0.001,2061.7,2061.6,0.47491573]
[1773352090872,0.001,2061.7,2061.6,1.68756609]
[1773352091170,0.001,2061.9,2061.7,0.47391573]
[1773352092664,0.001,2061.9,2061.6,0.47391573]
[1773352095072,0.45915067,2061.9,2061.6,1.68655281]
[1773352097670,0.45915067,2061.9,2061.6,1.68656337]
[1773352098176,0.45915067,2061.9,2061.6,0.47391573]
[1773352098577,0.45915067,2061.9,2061.6,1.68656244]
[1773352098881,0.45915067,2061.9,2061.6,0.47391573]
[1773352099176,0.001,2061.7,2061.6,0.47391573]
[1773352100349,0.001,2061.7,2061.5,0.47501573]
[1773352101249,0.4883623,2061.7,2061.5,0.0011]
[1773352103081,0.4883623,2061.7,2061.3,0.0011]
[1773352103376,0.4883623,2061.7,2061.1,0.0011]
[1773352103377,0.4873623,2061.6,2061.1,0.0011]
[1773352103582,0.4873623,2061.6,2061.1,0.0033]
[1773352104157,0.4873623,2061.4,2061.1,0.0033]
[1773352110966,0.4873623,2061.4,2061.3,0.0011]
[1773352114994,0.4873623,2061.4,2061.1,0.0011]
[1773352115198,0.4873623,2061.4,2061.1,0.0033]
[1773352116798,0.4873623,2061.4,2061.1,0.0011]
[1773352118098,1.21277156,2061.4,2061.1,0.0011]
[1773352118284,0.4873623,2061.3,2061.1,0.0011]
[1773352122480,0.001,2061.2,2061.1,0.0011]
[1773352122677,0.47794907,2061.2,2061.1,0.0033]
[1773352126806,0.47794907,2061.2,2061.1,0.0011]
[1773352127008,0.47794907,2061.2,2060.9,0.0011]
[1773352127209,0.47794907,2061.2,2060.9,0.0033]
[1773352128195,0.47694907,2061.1,2060.9,0.0033]
[1773352131388,0.49848681,2061.2,2061.0,0.0022]
[1773352133127,1.71137789,2061.2,2061.0,0.0022]
[1773352133430,0.49848681,2061.2,2061.0,0.0022]
[1773352134145,0.49748681,2061.1,2061.0,0.0022]
[1773352135205,1.21388676,2061.2,2061.0,0.0022]
[1773352136140,1.71137357,2061.2,2061.0,0.0022]
[1773352136634,0.49748681,2061.1,2060.9,0.0011]
[1773352136826,0.49748681,2061.1,2060.8,0.0011]
[1773352137536,0.49748681,2061.0,2060.8,0.0011]
[1773352139139,0.49748681,2061.0,2060.6,0.0011]
[1773352139314,2.35048681,2060.9,2060.6,0.0011]
[1773352140012,1.853,2060.9,2060.6,0.0011]
[1773352140211,0.49748681,2060.8,2060.6,0.0011]
[1773352142129,1.855,2061.0,2060.7,0.47831573]
[1773352143039,0.49848681,2061.2,2060.7,0.47831573]
[1773352143245,1.855,2061.1,2060.7,0.47831573]
[1773352143745,1.855,2061.1,2060.8,0.47831573]
[1773352143944,0.001,2061.2,2060.8,0.47831573]
[1773352144318,0.01213005,2061.5,2060.8,0.47731573]
[1773352145409,0.01213005,2061.5,2061.3,1.04691744]
[1773352145610,0.001,2061.7,2061.6,0.47731573]
[1773352146242,0.001,2061.7,2061.3,0.47731573]
[1773352149651,0.001,2061.7,2061.5,0.47731573]
[1773352151835,0.001,2061.7,2061.6,1.21265036]
[1773352152153,0.001,2061.7,2061.6,1.68996609]
[1773352157552,0.001,2061.9,2061.7,0.47731573]
[1773352158438,0.001,2061.9,2061.8,1.68984846]
[1773352161450,0.001,2061.9,2061.8,1.73834976]
[1773352169960,0.001,2061.9,2061.8,1.73115885]
[1773352170148,0.46173448,2062.1,2061.8,1.73115885]
[1773352170569,0.46173448,2062.1,2061.8,1.26103403]
[1773352170881,0.001,2062.1,2061.8,1.73115885]
[1773352171267,0.46173448,2062.1,2061.8,1.73115885]
[1773352171674,0.001,2062.1,2061.8,1.73115885]
[1773352172458,0.46173448,2062.1,2061.8,1.73115885]
[1773352180693,0.001,2062.1,2061.8,1.73115885]
[1773352181274,0.46173448,2062.1,2061.8,1.73115885]
[1773352182618,1.21153828,2063.5,2062.5,0.47631573]
[1773352182889,0.01412399,2063.0,2062.5,0.47631573]
[1773352183305,0.48207921,2063.0,2062.7,0.47631573]
[1773352187088,0.01412399,2063.0,2062.8,1.68826065]
[1773352187688,0.01412399,2063.0,2062.9,0.47631573]
[1773352189068,0.01412399,2063.0,2062.9,1.6882019]
[1773352190299,0.01212096,2063.1,2062.9,1.6882019]
[1773352190479,0.01212096,2063.1,2063.0,0.45407437]
[1773352191218,0.01212096,2063.1,2063.0,1.6659018]
[1773352192005,0.47470233,2063.5,2063.1,0.45407437]
[1773352193398,0.48882632,2063.4,2063.1,1.66583759]
[1773352193715,0.47470233,2063.4,2063.1,1.66583759]
[1773352195004,0.47470233,2063.4,2063.1,1.66584009]
[1773352195412,0.47470233,2063.4,2063.1,1.66684009]
[1773352195717,0.002,2063.3,2063.1,1.66684009]
[1773352195906,0.002,2063.3,2063.1,0.45507437]
[1773352197525,0.47670233,2063.3,2063.1,0.001]
[1773352197728,0.49082632,2063.3,2063.1,0.001]
[1773352198297,0.01612399,2063.3,2063.1,0.001]
[1773352198495,0.49082632,2063.3,2063.1,0.001]
[1773352200128,0.48882632,2063.2,2063.1,0.001]
[1773352200909,0.01412399,2063.2,2063.1,0.001]
[1773352204406,0.01412399,2063.2,2063.1,0.45507437]
[1773352206733,0.002,2063.3,2063.1,1.66684306]
[1773352208411,0.47670233,2063.3,2063.1,1.21276869]
[1773352208739,0.47670233,2063.3,2063.1,0.001]
[1773352209237,0.002,2063.5,2063.1,0.001]
[1773352209238,0.47670233,2063.5,2063.2,0.45407437]
[1773352209535,0.01412399,2063.4,2063.2,0.45407437]
[1773352210312,0.002,2063.5,2063.3,0.50254041]
[1773352211134,0.002,2063.5,2063.3,1.26008768]
[1773352211337,0.002,2063.5,2063.4,0.45407437]
[1773352212310,0.01612399,2063.5,2063.4,0.45407437]
[1773352212512,0.002,2063.5,2063.4,0.45407437]
[1773352213842,0.47670233,2063.8,2063.4,0.45407437]
[1773352213843,5.0,2065.4,2063.8,0.45407437]
[1773352214049,0.43987495,2065.0,2064.5,0.45407437]
[1773352214342,0.47470233,2064.9,2064.0,2.76835923]
[1773352214515,0.91457728,2065.0,2064.0,0.45407437]
[1773352214717,0.91457728,2065.0,2064.2,0.45407437]
[1773352214943,0.43987495,2064.9,2064.2,0.45407437]
[1773352215318,1.22271523,2065.1,2064.4,0.45407437]
[1773352215319,1.22275042,2065.1,2064.4,0.45407437]
[1773352215716,1.22275042,2065.1,2064.6,0.45407437]
[1773352216137,0.47470233,2064.9,2064.2,4.84435808]
[1773352216341,0.47470233,2064.9,2064.3,0.45407437]
[1773352216548,1.22275042,2065.1,2064.1,0.45407437]
[1773352216549,0.47470233,2064.7,2064.1,0.45407437]
[1773352217415,0.47470233,2064.5,2063.9,1.21126341]
[1773352217617,0.47470233,2064.4,2063.9,1.21126341]
[1773352218256,0.47470233,2064.3,2063.8,4.84538619]
[1773352218458,0.47470233,2064.2,2063.8,4.84538619]
[1773352218655,1.21105005,2064.4,2063.9,0.45407437]
[1773352218816,0.43987495,2064.2,2063.9,0.45407437]
[1773352219148,0.47470233,2064.7,2063.9,0.45407437]
[1773352219440,1.802,2064.6,2064.2,0.45407437]
[1773352219635,2.24187495,2064.6,2064.2,0.45407437]
[1773352220025,0.43987495,2064.6,2064.2,0.45407437]
[1773352220225,0.43987495,2064.6,2064.2,1.66517394]
[1773352220428,0.43987495,2064.5,2064.2,1.66517394]
[1773352220740,1.804,2064.7,2064.3,0.46118228]
[1773352220927,0.43987495,2064.6,2064.3,0.46118228]
[1773352221519,0.002,2064.4,2064.3,0.46118228]
[1773352221849,0.43987495,2064.6,2064.3,0.46118228]
[1773352222049,0.002,2064.7,2064.3,0.46118228]
[1773352222358,0.002,2064.7,2064.4,1.67218789]
[1773352222359,0.43987495,2064.6,2064.4,1.67218789]
[1773352222557,0.43987495,2064.6,2064.5,0.46118228]
[1773352222767,0.93070773,2064.6,2064.1,1.51777348]
[1773352222950,0.93070773,2064.6,2064.2,1.21112295]
[1773352222951,0.43987495,2064.5,2064.2,1.21112295]
[1773352223162,0.43987495,2064.5,2064.1,4.85672202]
[1773352223163,0.93070773,2064.5,2064.1,1.22329215]
[1773352223356,0.07764182,2065.6,2064.5,0.46118228]
[1773352223357,4.85453128,2065.3,2064.5,0.46118228]
[1773352223666,4.85453128,2065.3,2064.9,0.46118228]
[1773352223667,0.49083278,2065.3,2064.9,0.46118228]
[1773352223851,1.22244461,2065.6,2064.9,0.46118228]
[1773352223852,0.49083278,2065.5,2064.9,0.46118228]
[1773352224031,9.69665843,2065.5,2064.9,0.46118228]
[1773352224232,9.69665843,2065.5,2065.1,0.46118228]
[1773352224432,9.69665843,2065.4,2065.1,0.46118228]
[1773352224633,10.90703215,2065.5,2065.1,0.46118228]
[1773352225043,9.69665843,2065.5,2065.1,0.46118228]
[1773352225453,9.69665843,2065.4,2065.1,0.46118228]
[1773352225661,5.22431325,2065.8,2065.3,0.46118228]
[1773352225662,0.38344788,2065.8,2065.3,0.46118228]
[1773352225856,9.69665843,2065.7,2065.2,1.04447933]
[1773352226035,0.49083278,2065.5,2064.9,0.46118228]
[1773352226240,0.49083278,2065.3,2064.7,1.67196852]
[1773352226498,1.21041928,2065.4,2065.1,0.46118228]
[1773352226499,9.69665843,2065.4,2065.1,0.46118228]
[1773352226965,1.21034793,2065.6,2065.1,0.46118228]
[1773352227267,0.49083278,2065.5,2065.1,0.46118228]
[1773352228665,0.49083278,2065.5,2064.8,1.21077101]
[1773352228666,0.49083278,2065.3,2064.8,1.21077101]
[1773352229565,11.49065843,2065.4,2064.6,0.01210884]
[1773352229566,0.49083278,2065.1,2064.6,0.01210884]
[1773352229872,0.49083278,2064.9,2064.6,0.01210884]
[1773352230045,0.49083278,2064.7,2064.6,0.01210884]
[1773352230253,0.49083278,2064.7,2064.3,1.21105769]
[1773352230454,0.49083278,2064.6,2064.1,0.47329415]
[1773352230662,0.49083278,2064.6,2064.1,1.684473]
[1773352230663,11.39842384,2064.6,2064.1,1.684473]
[1773352230868,11.39842384,2064.6,2064.1,0.47329415]
[1773352231064,11.39842384,2064.6,2064.1,1.68447207]
[1773352233370,11.39842384,2064.6,2064.1,1.68547207]
[1773352233758,0.002,2064.5,2064.1,1.68547207]
[1773352234274,4.84212715,2064.4,2064.1,1.22428979]
[1773352234584,10.17738539,2064.4,2064.1,0.01311187]
[1773352234884,10.17738539,2064.4,2064.1,1.22428564]
[1773352236776,1.812,2064.3,2064.1,0.01311187]
[1773352237083,11.49855261,2064.3,2064.1,0.01311187]
[1773352238162,6.65642546,2064.3,2064.1,0.01311187]
[1773352238363,1.812,2064.3,2064.1,0.01311187]
[1773352241881,0.49083278,2064.2,2064.1,0.01311187]
[1773352244899,10.17738539,2064.2,2064.1,0.01311187]
[1773352248584,0.49083278,2064.2,2064.0,1.21123591]
[1773352248767,10.13434293,2064.1,2064.0,1.21123591]
[1773352248976,0.46090219,2064.1,2064.0,1.21123591]
[1773352249175,0.46090219,2064.0,2063.6,0.0131149]
[1773352249379,0.46090219,2063.8,2063.3,0.001]
[1773352249579,0.46090219,2063.6,2063.3,0.001]
[1773352249898,2.29390219,2063.6,2063.3,0.001]
[1773352250271,2.29390219,2063.6,2063.3,0.46774975]
[1773352251208,3.50539592,2063.6,2063.3,0.46774975]
[1773352252195,10.15264725,2063.5,2063.3,0.001]
[1773352252371,0.49332141,2063.4,2063.3,0.001]
[1773352252801,9.65932584,2063.5,2063.3,0.001]
[1773352252967,9.65932584,2063.4,2063.3,0.46117005]
[1773352253168,1.837,2063.5,2063.3,0.46117005]
[1773352253502,9.65932584,2063.6,2063.4,0.46017005]
[1773352253670,1.837,2063.6,2063.4,0.46017005]
[1773352254381,1.837,2063.6,2063.4,1.67174441]
[1773352254568,1.837,2063.6,2063.5,0.46017005]
[1773352258614,11.49632584,2063.6,2063.5,0.46017005]
[1773352259083,11.49632584,2063.6,2063.4,0.46017005]
[1773352260310,4.82801225,2063.5,2063.4,0.46017005]
[1773352260520,11.50232584,2063.5,2063.4,0.46017005]
[1773352261016,1.844,2063.6,2063.5,0.001]
[1773352261220,1.844,2063.6,2063.5,1.67270385]
[1773352262122,1.844,2063.6,2063.5,0.46117005]
[1773352266135,11.50332584,2063.6,2063.5,0.46117005]
[1773352266910,6.67531359,2063.6,2063.5,0.46117005]
[1773352268322,3.05547509,2063.6,2063.5,0.46117005]
[1773352269134,3.05547509,2063.6,2063.4,0.44213356]
[1773352269332,12.71480093,2063.6,2063.4,0.44213356]
[1773352274240,0.49332141,2063.4,2063.1,0.01311793]
[1773352275212,0.49532141,2063.4,2063.1,0.01311793]
[1773352276329,0.49332141,2063.3,2063.1,0.01311793]
[1773352276529,0.48650268,2063.3,2063.1,0.01311793]
[1773352276844,4.83131359,2063.2,2063.1,0.01311793]
[1773352277634,6.68431359,2063.2,2063.1,0.01311793]
[1773352278130,7.177635,2063.2,2063.1,0.01311793]
[1773352279641,2.34632141,2063.2,2063.1,0.01311793]
[1773352281732,12.00464725,2063.2,2063.1,0.01311793]
[1773352282138,7.177635,2063.2,2063.1,0.01311793]
[1773352282332,6.68431359,2063.2,2063.1,0.01311793]
[1773352283231,12.00237746,2063.2,2063.1,0.01311793]
[1773352284224,12.00237746,2063.2,2063.1,1e-08]
[1773352285035,12.00237746,2063.2,2063.0,0.001]
[1773352285251,9.65832584,2063.1,2063.0,0.001]
[1773352286352,10.14662582,2063.1,2063.0,0.001]
[1773352288025,10.14862582,2063.1,2063.0,0.001]
[1773352296860,6.5361339,2063.1,2063.0,0.001]
[1773352297065,5.32436521,2063.1,2063.0,0.001]
[1773352297945,10.14862582,2063.1,2063.0,0.001]
[1773352298147,6.50203797,2063.1,2063.0,0.001]
[1773352298463,1.70482031,2063.1,2063.0,0.001]
[1773352298765,11.32629858,2063.1,2063.0,0.001]
[1773352299141,0.03309593,2063.0,2062.9,0.001]
[1773352299347,10.14562582,2063.0,2062.9,0.001]
[1773352302669,11.35745325,2063.0,2062.9,0.001]
[1773352302868,10.14562582,2063.0,2062.9,0.001]
[1773352303035,11.35745325,2063.0,2062.9,0.001]
[1773352305269,10.14562582,2063.0,2062.9,0.001]
[1773352305673,11.35745325,2063.0,2062.9,0.001]
[1773352309259,11.35745325,2063.0,2062.7,0.001]
[1773352309260,0.46004161,2062.8,2062.7,0.001]
[1773352309575,2.33804161,2062.8,2062.7,0.001]
[1773352311870,3.54998653,2062.8,2062.7,0.001]
[1773352312452,13.1714648,2062.8,2062.7,0.001]
[1773352312654,10.10485212,2062.7,2062.5,0.01212096]
[1773352314071,10.10485212,2062.7,2062.5,0.01312096]
[1773352314980,11.28477074,2062.7,2062.5,0.01312096]
[1773352315277,10.07275619,2062.7,2062.5,0.01312096]
[1773352315587,9.62147827,2062.6,2062.5,0.01312096]
[1773352320764,9.62147827,2062.6,2062.2,3.97411291]
[1773352320765,0.45127792,2062.5,2062.2,3.97411291]
[1773352320969,1.888,2062.4,2062.2,0.45776945]
[1773352322382,3.10018036,2062.4,2062.2,0.45776945]
[1773352322754,1.888,2062.4,2062.2,0.45776945]
[1773352322958,3.10018646,2062.4,2062.2,0.45776945]
[1773352323359,1.888,2062.4,2062.2,0.45776945]
[1773352324071,1.888,2062.4,2062.1,0.45776945]
[1773352324072,3.10018142,2062.4,2062.1,0.45776945]
[1773352324366,13.17293761,2062.4,2062.1,0.45776945]
[1773352324564,12.72165969,2062.4,2062.1,0.45776945]
[1773352324770,9.62147827,2062.3,2062.1,0.45776945]
[1773352326198,9.62147827,2062.2,2062.0,0.01312399]
[1773352326360,10.06593537,2062.2,2062.0,0.01312399]
[1773352326786,4.79039684,2062.2,2062.0,0.47089344]
[1773352327288,6.4539731,2062.2,2061.8,0.15941339]
[1773352327602,9.61465745,2062.1,2061.9,0.15841339]
[1773352328164,6.68439684,2062.1,2061.9,0.15841339]
[1773352328364,1.894,2062.1,2061.9,0.15841339]
[1773352329284,1.894,2062.1,2061.6,1.04663988]
[1773352329285,0.45127792,2062.0,2061.6,4.85156181]
[1773352329490,0.45127792,2061.9,2061.6,4.85156181]
[1773352329692,0.45127792,2061.9,2061.7,1.21256176]
[1773352329863,0.45127792,2061.9,2061.6,1.37201946]
[1773352330063,4.79039684,2061.8,2061.6,1.37201946]
[1773352330263,4.79039684,2061.8,2061.6,0.15941339]
[1773352330565,8.40111423,2061.7,2061.6,1.37204969]
[1773352330766,0.45127792,2061.9,2061.6,1.37204969]
[1773352330996,8.40111423,2061.8,2061.6,1.37204969]
[1773352331293,4.79039684,2061.7,2061.6,1.37204969]
[1773352331690,8.40111423,2061.7,2061.6,0.001]
[1773352332060,8.40111423,2061.7,2061.6,1.21365036]
[1773352332290,8.40111423,2061.7,2061.6,0.001]
[1773352332490,8.40111423,2061.7,2061.6,1.21365036]
[1773352333163,8.40111423,2061.7,2061.6,0.001]
[1773352335597,8.40111423,2061.7,2061.6,0.15941339]
[1773352337169,8.40111423,2061.7,2061.6,0.001]
[1773352338296,8.85239215,2061.7,2061.6,0.001]
[1773352339202,8.85239215,2061.7,2061.4,1.37214408]
[1773352339203,8.40111423,2061.6,2061.4,1.21373069]
[1773352339581,3.61071739,2061.6,2061.4,1.37314408]
[1773352342096,0.45127792,2061.7,2061.4,1.37314408]
[1773352342294,8.40111423,2061.6,2061.4,1.37314408]
[1773352344084,8.40111423,2061.6,2061.4,0.001]
[1773352344286,8.40111423,2061.5,2061.4,1.21376802]
[1773352344503,8.39429214,2061.5,2061.4,1.21376802]
[1773352345521,8.39429214,2061.5,2061.2,0.15941339]
[1773352345522,0.4553142,2061.5,2061.2,0.15941339]
[1773352345724,2.32823151,2061.4,2061.1,1.37235793]
[1773352347205,0.4553142,2061.5,2061.1,1.37235793]
[1773352349209,2.78354571,2061.4,2061.3,0.0011]
[1773352349417,0.4553142,2061.4,2061.3,0.0011]
[1773352353190,0.4553142,2061.4,2061.0,1.385634]
[1773352353391,2.32713151,2061.3,2061.0,1.385634]
[1773352353990,2.78244571,2061.3,2061.0,1.385634]
[1773352354193,2.32713151,2061.2,2061.0,1.385634]
[1773352355933,1.113777,2061.1,2061.0,1.385634]
[1773352356099,1.113777,2061.2,2061.0,1.385634]
[1773352356821,1.5690912,2061.2,2061.0,1.22622061]
[1773352357005,1.5690912,2061.1,2061.0,1.22623344]
[1773352357323,0.4553142,2061.1,2061.0,1.22623344]
[1773352358198,1.5690912,2061.1,2061.0,0.01323005]
[1773352358425,0.4553142,2061.1,2060.8,1.21421567]
[1773352358595,0.4553142,2060.9,2060.8,1.21421567]
[1773352358919,1.55586115,2061.2,2060.9,0.15941339]
[1773352359087,0.4553142,2061.2,2060.9,0.15941339]
[1773352360420,2.3613142,2061.3,2061.0,0.15941339]
[1773352360620,1.10054695,2061.2,2061.0,0.15941339]
[1773352360996,0.001,2061.1,2061.0,0.15941339]
[1773352361294,0.001,2061.1,2061.0,0.16051339]
[1773352364126,0.001,2061.1,2061.0,0.0011]
[1773352364327,0.47955189,2061.0,2060.8,1.21417804]
[1773352364518,0.47955189,2060.9,2060.8,1.21417804]
[1773352364717,1.58009884,2061.0,2060.8,0.0011]
[1773352366021,1.10054695,2060.9,2060.8,0.0011]
[1773352369340,1.58009884,2060.9,2060.8,0.0011]
[1773352369628,0.47955189,2060.9,2060.8,0.0011]
[1773352370428,0.47955189,2060.9,2060.7,1.21427998]
[1773352370606,1.10054695,2060.8,2060.7,1.21427998]
[1773352370807,1.10054695,2060.8,2060.7,1.72652796]
[1773352371212,0.45240627,2061.1,2060.8,1.67678855]
[1773352373128,0.45240627,2061.1,2061.0,0.0011]
[1773352378825,1.66535081,2061.1,2061.0,0.0011]
[1773352381646,0.45140627,2061.0,2060.8,0.0011]
[1773352383718,1.66446852,2060.9,2060.8,0.0011]
[1773352384182,0.45140627,2060.8,2060.6,0.0011]
[1773352384317,0.45140627,2060.6,2060.3,0.46372079]
[1773352385338,0.45140627,2060.6,2060.1,0.46372079]
[1773352385644,0.45140627,2060.6,2060.1,0.51226212]
[1773352385855,1.66468994,2060.6,2060.1,1.72578345]
[1773352386027,0.45140627,2060.5,2060.1,1.72578345]
[1773352386228,0.45140627,2060.5,2060.0,1.2742307]
[1773352387153,0.45140627,2060.5,2060.0,0.06067745]
[1773352387446,0.45140627,2060.5,2060.0,1.22572259]
[1773352388157,0.45140627,2060.4,2060.0,0.01213612]
[1773352389154,0.45140627,2060.4,2059.7,1.67745891]
[1773352392346,0.45140627,2060.6,2060.2,0.46372079]
[1773352392546,1.884,2060.5,2060.2,1.67715074]
[1773352392844,1.21316263,2060.8,2060.3,0.46372079]
[1773352393046,0.001,2060.9,2060.6,0.46372079]
[1773352393248,0.001,2061.1,2060.7,1.04761344]
[1773352393456,0.001,2061.1,2060.8,0.46372079]
[1773352395187,0.001,2061.1,2061.0,0.46372079]
[1773352397376,0.001,2061.1,2061.0,1.67672418]
[1773352400276,0.01313005,2061.5,2061.1,0.46372079]
[1773352400584,1.70824851,2061.9,2061.3,0.47990328]
[1773352400786,1.22458748,2062.0,2061.3,0.47990328]
[1773352401079,3.59531667,2062.0,2061.3,0.47990328]
[1773352401274,2.38285621,2062.0,2061.3,0.47990328]
[1773352401972,0.50785621,2062.0,2061.3,1.04761344]
[1773352402182,2.38585621,2062.0,2061.4,0.47990328]
[1773352402981,2.38585621,2062.0,2061.5,1.21270919]
[1773352403165,2.38585621,2062.0,2061.6,0.47990328]
[1773352404983,2.38585621,2062.0,2061.6,1.69253852]
[1773352405496,2.38585621,2062.0,2061.7,0.47990328]
[1773352406090,3.59827233,2062.0,2061.7,0.47990328]
[1773352406458,2.38585621,2062.0,2061.7,0.47990328]
[1773352408095,1.89012702,2062.0,2061.8,0.47990328]
[1773352409797,2.38585621,2062.0,2061.5,1.69261247]
[1773352409997,0.49572919,2061.9,2061.5,1.69261247]
[1773352412685,0.49672919,2061.8,2061.5,1.69261247]
[1773352413080,0.49672919,2061.8,2061.5,1.21270919]
[1773352414974,0.49672919,2061.8,2061.4,1.69265778]
[1773352419184,0.49572919,2061.7,2061.4,1.2127545]
[1773352419872,0.49572919,2061.7,2061.4,1.69265778]
[1773352425204,0.49572919,2061.7,2061.6,0.001]
[1773352430442,0.49572919,2061.7,2061.4,1.2137545]
[1773352430654,0.49572919,2061.7,2061.4,1.21376295]
[1773352431023,0.49572919,2061.7,2061.4,1.69330938]
[1773352431239,0.47311263,2061.7,2061.4,1.21376295]
[1773352431744,0.47311263,2061.7,2061.4,1.69330938]
[1773352433444,1.901,2061.8,2061.5,0.47954643]
[1773352434958,0.47311263,2061.7,2060.7,1.6173276]
[1773352435184,1.901,2061.8,2060.3,0.47954643]
[1773352435185,0.47311263,2060.7,2060.3,0.47954643]
[1773352435452,0.47311263,2061.1,2060.6,0.47954643]
[1773352435658,2.89073104,2061.0,2060.6,0.47954643]
[1773352435823,2.7851262,2061.6,2060.8,0.47954643]
[1773352436149,0.47411263,2061.8,2061.0,0.47954643]
[1773352436345,0.002,2062.1,2061.6,0.5]
[1773352437258,0.002,2062.1,2061.8,0.5]
[1773352437461,0.33195344,2062.2,2062.0,0.5]
[1773352437642,0.002,2062.3,2062.1,0.47954643]
[1773352438140,0.002,2062.3,2062.2,7.85328257]
[1773352438466,0.01412399,2062.5,2062.1,0.47954643]
[1773352439368,0.01412399,2062.5,2062.1,0.46741335]
[1773352439530,0.01412399,2062.5,2062.3,0.47954643]
[1773352440134,0.01412399,2062.5,2062.2,1.21229754]
[1773352440135,0.01412399,2062.5,2062.4,7.85328257]
[1773352440355,0.01412399,2062.5,2062.4,0.47954643]
[1773352440774,0.01412399,2062.5,2062.4,7.85328257]